Cogmind - Beta 13 @@@ ROGUE MODE // 2024.06.24 @ 11:46:17 Player: QR-TZ Result: Self-destructed Performance ------------- Evolutions (3) 1500 Regions Visited (7) 1400 Robots Destroyed (59) 295 Value Destroyed (1801) 1801 Prototype IDs (7) 140 Alien Tech Used (0) 0 Bonus (-310) -310 TOTAL SCORE: 4826 Bonus ------- High Alert Combat Kills 56 Follower Combat Kills 72 Friendly Fire -438 Cogmind --------- Core Integrity 642/700 Matter 141/300 Energy 233/280 System Corruption 1% Temperature Warm (176) Movement Walking (120) Location -7/Lower Caves Parts ------- > --- POWER (1) -------- Cooled Ion Engine > --- PROPULSION (4) --- Carbon-fiber Leg Carbon-fiber Leg Carbon-fiber Leg Carbon-fiber Leg > --- UTILITY (4) ------ Large Storage Unit Trap Scanner Improved Signal Interpreter > --- WEAPON (4) ------- Enhanced Autogun Gauss Rifle > --- INVENTORY (15) --- Subdweller Power Source Carbon-fiber Leg Wheel Improved Flight Unit Improved Cooling System Structural Scanner Makeshift Light Armor Plating Hacking Suite Hacking Suite System Shield Sensor Drone Bay (19/20) Enhanced Autogun Gauss Rifle Advanced EMP Blaster Power Maul Peak State ------------ > --- POWER ------------ Cooled Ion Engine > --- PROPULSION ------- Carbon-fiber Leg Carbon-fiber Leg Carbon-fiber Leg Carbon-fiber Leg > --- UTILITY ---------- Large Storage Unit Trap Scanner Experimental Sensor Array Improved Signal Interpreter > --- WEAPON ----------- Enhanced Autogun Gauss Rifle Gauss Rifle Power Maul > --- INVENTORY -------- Subdweller Power Source Carbon-fiber Leg Wheel Improved Flight Unit Improved Heat Sink Structural Scanner Makeshift Light Armor Plating Hacking Suite System Shield Sensor Drone Bay Beamcaster Enhanced Autogun Advanced EMP Blaster Advanced EMP Blaster Subdweller Shrapnel Launcher [Rating: 52] Favorites ----------- Power Cooled Ion Engine Engine Cooled Ion Engine Power Core Light Nuclear Core Propulsion Carbon-fiber Leg Leg Carbon-fiber Leg Wheel Subdweller Monowheel Utility Small Storage Unit Device Sensor Drone Bay Storage Small Storage Unit Processor Improved Signal Interpreter Protection Makeshift Light Armor Plating Weapon Enhanced Autogun Energy Gun Medium Laser Energy Cannon Subdweller Beam Cannon Ballistic Gun Enhanced Autogun Launcher Advanced EMP Blaster Impact Weapon Power Maul Slashing Weapon Scythe Build | -11 -10 -10 -10 -8 -8 -7 -7 ------- Run | Yrd Mat Min Sub Mat Sto Fac Low Slots Evolved 6 | . . . . 4 . 2 . Power . | . . . . . . . . Propulsion 2 | . . . . 1 . 1 . Utility 2 | . . . . 2 . . . Weapon 2 | . . . . 1 . 1 . Parts Attached 82 | 8 . 7 8 23 22 12 2 Power 5 | 1 . . 1 2 1 . . Engine 3 | 1 . . 1 . 1 . . Core 2 | . . . . 2 . . . Reactor . | . . . . . . . . Propulsion 21 | 4 . 3 2 5 5 2 . Treads . | . . . . . . . . Leg 14 | 2 . 3 2 3 3 1 . Wheel 7 | 2 . . . 2 2 1 . Hover . | . . . . . . . . Flight . | . . . . . . . . Utility 25 | 1 . 2 1 11 6 4 . Device 11 | . . 1 . 4 3 3 . Storage 3 | 1 . . . 2 . . . Processor 1 | . . . . . 1 . . Hackware . | . . . . . . . . Protection 10 | . . 1 1 5 2 1 . Artifact . | . . . . . . . . Weapon 31 | 2 . 2 4 5 10 6 2 Energy Gun 5 | 1 . 2 1 1 . . . Energy Cannon 1 | . . . 1 . . . . Ballistic Gun 13 | 1 . . 1 3 4 4 . Ballistic Cannon . | . . . . . . . . Launcher 8 | . . . 1 . 4 1 2 Special Weapon . | . . . . . . . . Impact Weapon 1 | . . . . . . 1 . Slashing Weapon 3 | . . . . 1 2 . . Piercing Weapon . | . . . . . . . . Special Melee Weapon . | . . . . . . . . Unidentified Prototypes 7 | . . 1 . 2 4 . . Parts Lost 15 | . . . 4 5 3 . 3 Power 2 | . . . 1 1 . . . Propulsion 5 | . . . 1 2 2 . . Utility 4 | . . . . 2 1 . 1 Weapon 4 | . . . 2 . . . 2 Highest Loss Streak 4 | . . . 4 4 3 . 3 To Critical Strikes 1 | . . . 1 . . . . Average Slot Usage (%) 97 | . 85 96 96 94 99 99 96 Engine 9 | . 14 14 11 3 8 7 7 Core 1 | . . . . 5 . . . Leg 24 | . 28 28 28 19 13 27 30 Wheel 3 | . . . . 6 12 2 . Device 7 | . . 3 3 6 16 14 11 Storage 11 | . 14 14 14 11 9 7 7 Processor 2 | . . . . . 4 7 7 Protection 8 | . . 7 10 15 6 . . Energy Gun 4 | . 14 14 7 . . . . Energy Cannon 3 | . . . 12 3 . . . Ballistic Gun 13 | . 14 14 6 15 18 17 19 Launcher 1 | . . . . . 3 4 7 Slashing Weapon 2 | . . . . 6 5 3 . Naked Turns . | . . . . . . . . Heaviest Build 62 | 12 12 26 29 59 62 53 52 Greatest Support 60 | 26 20 27 32 40 36 60 60 Greatest Overweight (x) 5 | . . . 1 2 3 5 . Average Overweight (x) . | . . . . 1 1 2 . Largest Inventory Capacity 15 | 8 8 8 8 15 15 15 15 Average Capacity 10 | 6 8 8 8 10 15 15 15 Most Carried 15 | 6 5 8 8 9 15 15 15 Average Carried 9 | 3 4 7 7 7 13 14 15 Final Capacity 15 | 8 8 8 8 15 15 15 15 Final Carried 15 | 4 5 8 8 9 13 15 15 Class Distribution -------------------- 49% | Mutant 22% | Scavenger-Assassin 21% | Scavenger-Mutant 5% | Scavenger-Tank Dominant Class ---------------- Mutant | -10/Materials Mutant | -10/Mines Mutant | -10/Subcaves Scavenger-Mutant | -8/Materials Scavenger-Mutant | -8/Storage Scavenger-Assassin | -7/Factory Scavenger-Assassin | -7/Lower Caves Resources | -11 -10 -10 -10 -8 -8 -7 -7 ----------- Run | Yrd Mat Min Sub Mat Sto Fac Low Matter Collected 1668 | 217 27 131 124 187 745 237 . Remotely . | . . . . . . . . Salvage Created 2339 | . 27 120 36 627 1200 295 34 Parts 114 | . 4 8 2 27 55 14 4 Haulers Intercepted 4 | . . . . 1 3 . . Recyclers Shooed 1 | . . . . 1 . . . Parts Field Recycled . | . . . . . . . . Retrieved Matter . | . . . . . . . . Parts Self-Destructed 4 | . . . 3 . . . 1 Prevented . | . . . . . . . . Kills | -11 -10 -10 -10 -8 -8 -7 -7 ------- Run | Yrd Mat Min Sub Mat Sto Fac Low Combat Hostiles Destroyed 41 | . 2 5 1 8 21 3 1 Melee 7 | . . . . 7 . . . Guns 18 | . 2 5 1 1 9 . . AOE 16 | . . . . . 12 3 1 Classes Destroyed 13 | . 1 1 1 6 4 . . Worker 3 | . . . . . 1 2 . Builder 2 | . . . . . 2 . . Hauler 4 | . . . . 1 3 . . Recycler 4 | . . . . 2 2 . . Mechanic 1 | . . . . . 1 . . Watcher 2 | . . . . 1 1 . . Swarmer 8 | . 2 3 . . 3 . . Grunt 22 | . . 2 . 4 12 3 1 Duelist 4 | . . . . 1 3 . . Protector 1 | . . . . . 1 . . Sentry 4 | . . . . 1 2 1 . Hunter 2 | . . . . 2 . . . Subdweller 1 | . . . 1 . . . . Thug 1 | . . . . . 1 . . Best Kill Streak 11 | . 2 3 1 5 11 3 1 Combat Bots Only 8 | . 2 3 1 4 8 3 1 Max Kills in Single Turn 4 | . 1 1 1 1 3 4 1 Gunslinging 1 | . . . . . 1 . . Exploded 3 | . . . . . 3 3 1 Melee 1 | . . . . 1 . . . Uniques/NPCs Destroyed . | . . . . . . . . Combat | -11 -10 -10 -10 -8 -8 -7 -7 -------- Run | Yrd Mat Min Sub Mat Sto Fac Low Hostile Shots Fired 207 | . 5 26 36 57 59 . 24 Missed 58 | . 1 9 12 18 12 . 6 Damage Taken 2907 | . 35 248 620 818 832 13 341 Core 233 | . . 45 25 57 48 13 45 Absorbed by Shields . | . . . . . . . . Core Remaining (%) 84 | 100 . . 72 . 80 . . Volleys Fired 82 | . 2 16 5 9 41 7 2 Largest 4 | . 2 2 2 3 3 3 4 Hottest 129 | . 70 70 110 110 81 81 129 Shots Fired 185 | . 4 32 10 21 96 14 8 Gun 157 | . 4 32 6 20 79 12 4 Cannon 3 | . . . 2 1 . . . Launcher 25 | . . . 2 . 17 2 4 Special . | . . . . . . . . Kinetic 152 | . 2 16 5 20 90 13 6 Thermal 22 | . 2 16 3 1 . . . Explosive 2 | . . . 2 . . . . Electromagnetic 9 | . . . . . 6 1 2 Robot Hit Streak 8 | . 2 6 1 3 8 5 1 Robot Miss Streak 3 | . . 3 3 2 3 3 1 Penetration Max 1 | . . . . . 1 . . Secondary Targets 1 | . . . . . 1 . . Max Gunslinging Chain 1 | . . . . . 1 . . Shots Hit Robots 134 | . 2 21 3 40 56 10 2 Core Hits 108 | . 2 8 3 16 58 11 10 Critical Kills 2 | . . . . . 2 . . Critical Parts Destroyed . | . . . . . . . . Critical Strikes 4 | . . . . 2 2 . . Destroy 2 | . . . . . 2 . . Sever 2 | . . . . 2 . . . Melee Attacks 50 | . . . . 39 9 2 . Impact 2 | . . . . . . 2 . Slashing 48 | . . . . 39 9 . . Piercing . | . . . . . . . . Sneak Attacks 4 | . . . . 3 . 1 . Combat Hostiles . | . . . . . . . . Follow-up Attacks . | . . . . . . . . Damage Inflicted 5893 | . 26 262 141 1111 3221 532 600 Guns 1689 | . 26 262 43 178 975 150 55 Cannons 28 | . . . . 28 . . . Explosions 3112 | . . . 98 . 2246 223 545 Melee 1064 | . . . . 905 . 159 . Ramming . | . . . . . . . . Kinetic 3394 | . . 125 43 178 2445 150 453 Thermal 303 | . 26 137 . 28 . 112 . Explosive 98 | . . . 98 . . . . Electromagnetic 1034 | . . . . . 776 111 147 Impact 159 | . . . . . . 159 . Slashing 905 | . . . . 905 . . . Piercing . | . . . . . . . . Highest Corruption 1 | . . . . . . . 1 Average Corruption 1 | . . . . . . . 1 Corruption Purged . | . . . . . . . . Corruption Blocked . | . . . . . . . . Overload Shots . | . . . . . . . . Overflow Damage 135 | . . . . 43 92 . . Projectiles 3 | . . . . 3 . . . Explosions 92 | . . . . . 92 . . Melee 40 | . . . . 40 . . . Knockbacks . | . . . . . . . . Impact . | . . . . . . . . Kinetic . | . . . . . . . . Secondary . | . . . . . . . . Self-Inflicted Damage 235 | . . . 48 . 135 13 39 Shots 10 | . . . 1 . 6 1 2 Rammed . | . . . . . . . . Targets Rammed . | . . . . . . . . Kicked . | . . . . . . . . Crushed . | . . . . . . . . Highest Temperature 207 | . 18 207 3 60 33 18 176 Average Temperature 40 | . 10 83 2 22 10 13 120 Received Heat Transfer 855 | . 12 108 105 81 333 . 216 Siege Activations . | . . . . . . . . Robots Corrupted . | . . . . . . . . Combat Hostiles . | . . . . . . . . Parts Fried 4 | . . . . . 4 . . Impact Corruptions . | . . . . . . . . Robots Melted . | . . . . . . . . Combat Hostiles . | . . . . . . . . Parts Melted 3 | . . 1 . . 1 1 . Heat Transferred 618 | . 74 407 . 37 . 100 . Parts Sabotaged . | . . . . . . . . Parts Stolen . | . . . . . . . . Parts Stripped . | . . . . . . . . Power Chain Reactions 1 | . . . . . . 1 . Alert | -11 -10 -10 -10 -8 -8 -7 -7 ------- Run | Yrd Mat Min Sub Mat Sto Fac Low Peak Influence 574 | . 56 156 . 252 574 397 . Initial 261 | . . 21 . . 59 261 . Average 149 | . 16 36 . 100 285 231 . Maximum Alert Level 2 | . . . . 1 2 1 . Low Security (%) 72 | 100 100 100 . 82 39 54 . Level 1 25 | . . . . 17 45 45 . Level 2 2 | . . . . . 14 . . Level 3 . | . . . . . . . . Level 4 . | . . . . . . . . Level 5 . | . . . . . . . . High Security . | . . . . . . . . Max Security . | . . . . . . . . Squads Dispatched 9 | . 3 . . 1 4 1 . Investigation 3 | . 2 . . 1 . . . Extermination 1 | . . . . . . 1 . Reinforcement 3 | . 1 . . . 2 . . Assault 2 | . . . . . 2 . . Garrison . | . . . . . . . . Intercept . | . . . . . . . . Searches Triggered . | . . . . . . . . Construction Impeded 1 | . . . . . 1 . . Haulers Reinforced . | . . . . . . . . Active Scanning Responses . | . . . . . . . . Cargo Convoy Interrupts . | . . . . . . . . Stealth | -11 -10 -10 -10 -8 -8 -7 -7 --------- Run | Yrd Mat Min Sub Mat Sto Fac Low Distress Signals 3 | . 1 . . 1 1 . . Communications Jammed . | . . . . . . . . Distress Signals . | . . . . . . . . Times Spotted 86 | . 8 6 12 21 27 4 8 Peak Tracking Total 9 | . 6 3 6 6 9 4 8 Tactical Retreats 4 | . . 1 . 2 1 . . Traps | -11 -10 -10 -10 -8 -8 -7 -7 ------- Run | Yrd Mat Min Sub Mat Sto Fac Low Traps Triggered 3 | . 1 1 . 1 . . . Indirectly . | . . . . . . . . Trap Hack Attempts . | . . . . . . . . Triggered . | . . . . . . . . Disarmed . | . . . . . . . . Reprogrammed . | . . . . . . . . Reused . | . . . . . . . . Traps Extracted . | . . . . . . . . Installed . | . . . . . . . . Triggered . | . . . . . . . . Machines | -11 -10 -10 -10 -8 -8 -7 -7 ---------- Run | Yrd Mat Min Sub Mat Sto Fac Low Machines Disabled 7 | . . . . 1 5 1 . Max in Single Turn 1 | . . . . 1 1 1 . Machines Repaired . | . . . . . . . . Machines Dismantled . | . . . . . . . . Machines Sabotaged . | . . . . . . . . Overloaded Fab Kills . | . . . . . . . . Hacking | -11 -10 -10 -10 -8 -8 -7 -7 --------- Run | Yrd Mat Min Sub Mat Sto Fac Low Machines Accessed 9 | . 1 2 . 3 2 1 . Terminals 6 | . 1 . . 3 2 . . Fabricators 1 | . . . . . . 1 . Repair Stations . | . . . . . . . . Recycling Units . | . . . . . . . . Scanalyzers . | . . . . . . . . Garrison Access . | . . . . . . . . Total Hacks 14 | . 5 2 . 4 2 1 . Successful 7 | . . 2 . 2 2 1 . Failed 7 | . 5 . . 2 . . . Catastrophic 3 | . 3 . . . . . . Database Lockouts . | . . . . . . . . Manual 1 | . . . . 1 . . . Terminals 11 | . 5 . . 4 2 . . Fabricators 1 | . . . . . . 1 . Repair Stations . | . . . . . . . . Recycling Units . | . . . . . . . . Scanalyzers . | . . . . . . . . Garrison Access . | . . . . . . . . Terminal Hacks 6 | . . 2 . 2 2 . . Open Door 2 | . . 2 . . . . . Level Access Points 1 | . . . . . 1 . . Branch Access Points 1 | . . . . 1 . . . Registered Components 1 | . . . . 1 . . . Zone Layout 1 | . . . . . 1 . . Fabricator Hacks 1 | . . . . . . 1 . Build 1 | . . . . . . 1 . Repair Station Hacks . | . . . . . . . . Recycling Unit Hacks . | . . . . . . . . Scanalyzer . | . . . . . . . . Garrison Access Hacks . | . . . . . . . . Unauthorized Hacks . | . . . . . . . . Terminals . | . . . . . . . . Fabricators . | . . . . . . . . Repair Stations . | . . . . . . . . Recycling Units . | . . . . . . . . Scanalyzers . | . . . . . . . . Garrison Access . | . . . . . . . . Data Cores Recovered . | . . . . . . . . Used . | . . . . . . . . Hacking Detections 5 | . 1 . . 2 2 . . Full Trace Events 1 | . 1 . . . . . . Feedback Events . | . . . . . . . . Feedback Blocked . | . . . . . . . . Robot Schematics Acquired . | . . . . . . . . Robots Built 1 | . . . . . . 1 . Authchips . | . . . . . . . . Time 81 | . . . . . . 81 . Total Robot Build Rating 1 | . . . . . . 1 . Part Schematics Acquired . | . . . . . . . . Parts Built . | . . . . . . . . Authchips . | . . . . . . . . Time . | . . . . . . . . Total Part Build Rating . | . . . . . . . . Parts Repaired . | . . . . . . . . Time . | . . . . . . . . Parts Recycled . | . . . . . . . . Recycled Matter . | . . . . . . . . Retrieved Matter . | . . . . . . . . Retrieved Components . | . . . . . . . . Parts Scanalyzed . | . . . . . . . . Part Schematics Acquired . | . . . . . . . . Parts Damaged . | . . . . . . . . Bothacking | -11 -10 -10 -10 -8 -8 -7 -7 ------------ Run | Yrd Mat Min Sub Mat Sto Fac Low Used RIF Installer . | . . . . . . . . Robots Hacked . | . . . . . . . . Non-combat . | . . . . . . . . Combat . | . . . . . . . . Robot Hacks Applied . | . . . . . . . . Relay Couplers Released . | . . . . . . . . Fabnet Peak Effective % . | . . . . . . . . Robots Rewired 2 | . . . . . . 2 . Allies Hacked . | . . . . . . . . Hacks Repelled . | . . . . . . . . Allies | -11 -10 -10 -10 -8 -8 -7 -7 -------- Run | Yrd Mat Min Sub Mat Sto Fac Low Total Allies 5 | . . . . . 2 3 . Largest Group 3 | . . . . . 2 3 1 Highest-Rated Group 62 | . . . . . 62 56 8 Highest-Rated Ally 32 | . . . . . 31 32 8 Total Orders 9 | . . 5 . 2 . 2 . FOLLOW 1 | . . . . . . 1 . COLLECT 1 | . . . . . . 1 . EXPLORE 1 | . . 1 . . . . . RETURN 6 | . . 4 . 2 . . . Ally Attacks 20 | . . . . . 10 10 . Total Damage 410 | . . . . . 209 201 . Kills 2 | . . . . . 1 1 . Allies Corrupted . | . . . . . . . . Allies Melted . | . . . . . . . . Intel | -11 -10 -10 -10 -8 -8 -7 -7 ------- Run | Yrd Mat Min Sub Mat Sto Fac Low Robot Analysis Total . | . . . . . . . . Derelict Logs Recovered 1 | . . 1 . . . . . Drone Launches 8 | . . 5 . 3 . . . Drone Recoveries 7 | . . 4 . 2 1 . . Exploration | -11 -10 -10 -10 -8 -8 -7 -7 ------------- Run | Yrd Mat Min Sub Mat Sto Fac Low Turns Passed 4284 | 65 72 799 1107 781 566 870 24 Spaces Moved 2506 | 49 55 549 813 386 275 367 12 Core 2 | 2 . . . . . . . Treads . | . . . . . . . . Legs 1810 | 18 55 549 813 113 35 215 12 Wheels 694 | 29 . . . 273 240 152 . Hover . | . . . . . . . . Flight . | . . . . . . . . Fastest Speed 50 | 50 120 120 125 120 117 120 120 Average Speed 139 | 99 120 121 131 139 129 200 120 Slowest Speed 260 | 120 120 125 195 260 190 260 120 Overloaded Moves . | . . . . . . . . Propulsion Burnouts . | . . . . . . . . Robots Hopped . | . . . . . . . . Cave-ins Triggered . | . . . . . . . . Exploration Rate (%) 27 | 3 16 92 37 23 37 7 4 Regions Visited 7 Branch Regions 4 Pre-discovered Areas 1 | . . . 1 . . . . Known Exits Taken 4 | . . . 1 1 1 1 . Unknown Exits Taken 3 | 1 1 1 . . . . . Scrap Searched 6 | . . 2 4 . . . . Spaces Dug 8 | . . . . 2 6 . . Terrain Destroyed 190 | . . . 18 2 132 16 22 Melee 8 | . . . . 2 6 . . Projectile 1 | . . . . . . 1 . AOE 181 | . . . 18 . 126 15 22 Terrain Rammed . | . . . . . . . . Walls Destroyed . | . . . . . . . . Machines Disabled . | . . . . . . . . Actions | -11 -10 -10 -10 -8 -8 -7 -7 --------- Run | Yrd Mat Min Sub Mat Sto Fac Low Total 3069 | 62 57 646 844 554 402 488 16 Wait 236 | . . 63 6 82 38 47 . Move 2499 | 48 54 548 812 385 274 366 12 Hop . | . . . . . . . . Pick Up 43 | 6 1 6 6 7 7 10 . Fast Attach 24 | 4 . 2 2 8 6 2 . Attach 23 | 2 . . 4 9 5 3 . Detach 8 | . . . . 4 4 . . Swap 35 | 2 . 5 2 6 11 7 2 Drop 32 | . . 6 6 5 7 8 . Fire 82 | . 2 16 5 9 41 7 2 Melee 50 | . . . . 39 9 2 . Ram . | . . . . . . . . Kick . | . . . . . . . . Crush . | . . . . . . . . Escape Stasis . | . . . . . . . . Rewire 37 | . . . 1 . . 36 . Trap . | . . . . . . . . Miscellaneous . | . . . . . . . . Route ------- -11/Scrapyard -10/Materials -10/Mines (discovered 4 exits: [*Mat x2] / [*Exi] / [*Sub]) -10/Subcaves (discovered 2 exits: *Mat x2) -8/Materials (discovered 2 exits: *Sto x2) -8/Storage -7/Factory -7/Lower Caves History --------- Turn | Location | Event 20 | -11/Scrapyard | Discovered new exit (range 14) 66 | -11/Scrapyard | Entered Materials 120 | -10/Materials | Discovered new exit (range 16) 138 | -10/Materials | Entered Mines 311 | -10/Mines | Found a damaged Exp. Sensor Array with a note attached 314 | -10/Mines | Found Prototype Device 334 | -10/Mines | Build established: Mutant 370 | -10/Mines | Received a Rocket Launcher from a helpful Derelict 621 | -10/Mines | Met a Derelict who couldn't figure out how to use a Trap Extractor 720 | -10/Mines | Discovered new exit (range 3) 734 | -10/Mines | Found the Drone Emporium 741 | -10/Mines | Found Prototype Device 742 | -10/Mines | Identified Sensor Drone Bay 797 | -10/Mines | Discovered new exit (range 8) 812 | -10/Mines | Learned Materials stockpile data 819 | -10/Mines | Deemed a non-threat by the Exiles lab entrance 820 | -10/Mines | Discovered new exit (range 5) 885 | -10/Mines | Discovered new exit (range 10) 937 | -10/Mines | Entered Subcaves 937 | -10/Subcaves | Accompanied by 1 ally 991 | -10/Subcaves | Ambushed by swarm of Subdwellers 1049 | -10/Subcaves | Lost 4 parts (1p1n2w) 1056 | -10/Subcaves | Learned location of Zion (-7) 1056 | -10/Subcaves | Met a Zionite searching for "candidates" 1086 | -10/Subcaves | Discovered new exit (range 15) 1115 | -10/Subcaves | Identified exit to Materials 1441 | -10/Subcaves | A swath of the cavern ceiling suddenly collapsed 2001 | -10/Subcaves | Discovered exit to Materials (range 5) 2044 | -10/Subcaves | Entered Materials 2044 | -8/Materials | Evolved 4 slots: Propulsion x1, Utility x2, Weapon x1 2085 | -8/Materials | Identified exit to Storage 2318 | -8/Materials | Lost 4 parts (2n2u) 2588 | -8/Materials | Build established: Scavenger-Mutant 2825 | -8/Materials | Entered Storage 2825 | -8/Storage | Accompanied by 1 ally 3088 | -8/Storage | Identified Exp. Sensor Array 3090 | -8/Storage | Identified exit to Factory 3246 | -8/Storage | Met a pair of Derelict thieves 3334 | -8/Storage | Destroyed 8 combat bots 3342 | -8/Storage | Lost 3 parts (2n1u) 3391 | -8/Storage | Entered Factory 3391 | -7/Factory | Evolved 2 slots: Propulsion x1, Weapon x1 3676 | -7/Factory | Fabricated R-06 Scavenger? 3742 | -7/Factory | Build established: Scavenger-Assassin 3959 | -7/Factory | Discovered new exit (range 7) 4001 | -7/Factory | Identified exit to Lower Caves 4261 | -7/Factory | Entered Lower Caves 4261 | -7/Lower Caves | Accompanied by 1 ally 4285 | -7/Lower Caves | Self-destructed Last Messages --------------- 04001_ EXIT=IDENTIFIED: LOWER CAVES 04076_ Dropped Corrupted Beamcaster. 04077_ Acquired Hacking Suite. 04213_ Sneak attack on A-02 Transporter. 04225_ ALERT: Rogue bot located, Programmers report to Factory Zone 9G. 04225_ Slug penetrates Wall. 04228_ Slug penetrates A-02 Transporter. 04234_ Slug penetrates Wall. 04234_ Slug penetrates A-02 Transporter. LOCATION=LOWER CAVES GOAL=ESCAPE 04275_ Slug penetrates G-47 Trooper. 04278_ Exp. Sensor Array destroyed. 04278_ Slug penetrates G-47 Trooper. 04281_ Sub. Shrapnel Launcher destroyed. 04282_ Adv. EMP Blaster destroyed. 04282_ Critical hit (Burn: +37). 04283_ Lgt. Nuclear Core fries itself beyond repair. 04284_ Critical hit (Burn: +37). 04284_ G-50 Soldier destroyed. Map ----- +----------------------------------------------------+ | ?????????????????????????????????????????????????? | | ?????????????????????????????????????????????????? | | ?????????????????????????????????????????????????? | | ?????????????????????????????????????????????????? | | ?????????????????????????????????????????????????? | | ?????????????????????????????????????????????????? | | ?????????????????????????????????????????????????? | | ???????????????????????????###???????????????????? | | ??????????????????????????# ???????????????????? | | ?????????????????????????# ????????????????????? | | ?????????????????????####; #???????????????????? | | ?????????????????????# ;##??????????????????? | | ?????????????????????? ; #??????????????????? | | ??????????????????????? ;;#??????????????????? | | ???????????????????????# ;##?????????????????? | | ???????????????????????# ;##????????????????? | | ???????????????????# ## ##???????????????? | | ???????????????????# ##??????????????? | | ????????????? ## %[g ##?????????????? | | ?????????? ????#gggg ##????????????? | | ??????????? ## ?????? ;!g #????????????? | | ???????????????????????##[% #????????????? | | ???????????????????????#; = ##????????????? | | ???????????????????????#; ;;;####?????????????? | | ????????????????????????# ##??????????????????? | | ???????????????????????##@ ###????????????????? | | ???????????????????????# #??????????????? | | ??????????????????????# ## #??????????????? | | ??????????????????????# #? #??????????????? | | ??????????????????????#####?# #??????????????? | | ?????????????????????????????# ##??????????????? | | ?????????????????????????????? #???????????????? | | ??????????????????????????????# #???????????????? | | ??????????????????????????????? #???????????????? | | ???????????????????????????????? #???????????????? | | ?????????????????????????????????#???????????????? | | ?????????????????????????????????????????????????? | | ?????????????????????????????????????????????????? | | ?????????????????????????????????????????????????? | | ?????????????????????????????????????????????????? | | ?????????????????????????????????????????????????? | | ?????????????????????????????????????????????????? | | ?????????????????????????????????????????????????? | | ?????????????????????????????????????????????????? | | ?????????????????????????????????????????????????? | | ?????????????????????????????????????????????????? | | ?????????????????????????????????????????????????? | | ?????????????????????????????????????????????????? | | ?????????????????????????????????????????????????? | | ?????????????????????????????????????????????????? | +----------------------------------------------------+ Best States ------------- Heat Dissipation 45 Energy Generation 15 Energy Capacity 400 Matter Stores 300 Matter Capacity 300 Sight Range 16 Robot Scan Range 20 Terrain Scan Density 10 Armor Coverage 800 Evasion (%) 55 Item Schematics ----------------- None Robot Schematics ------------------ None Fabricated ------------ R-06 Scavenger | x1 | -7/Factory | Preloaded Alien Tech Used ----------------- None Achievements -------------- None Challenges ------------ None Game ------ Seed AlertXenonPick Manual? 0 Play Time 00:53:40 Cumulative 32.8 hours Start 2024.06.24 @ 08:47:42 End 2024.06.24 @ 11:46:17 Sessions 4 Manual Loads 0 Difficulty Rogue Special Mode None Game No. 18 Rogue 18 Adventurer 0 Explorer 0 Win Type - Total 1 Types 1/0/0/0/0/0/0/0/0 Lore% 28 Gallery% 35 Achievement% 30 Wizard Run 0 Options --------- Layout 0 ASCII 0 Keyboard 0 Movement Mouse Keybinds 0 Fullscreen 1 Font 24/Smallcaps Map View 76x50 Zoom Use 0% Tactical HUD 1 Map Filters NONE Filters NONE Steam 1 RUN: a45663e6-f819-4cfe-9e60-6f63a750282c